[Event "*** Titled Tuesday 3|2 Blitz"]
[Site "Chess.com"]
[Date "2016.08.02"]
[Round "1"]
[White "cabalista"]
[Black "Tesla37"]
[Result "0-1"]
[WhiteElo "2326"]
[BlackElo "2692"]
[TimeControl "180+2"]
[EndTime "11:08:37 PDT"]
[Termination "Tesla37 won by resignation"]

1. e4 {[%clk 0:02:56.8]} 1... c5 {[%clk 0:03:00.4]} 2. Nf3 {[%clk 0:02:57.2]}
2... e6 {[%clk 0:03:01.6]} 3. Nc3 {[%clk 0:02:56.8]} 3... a6 {[%clk 0:03:01.6]}
4. d4 {[%clk 0:02:57.8]} 4... cxd4 {[%clk 0:03:02.4]} 5. Nxd4 {[%clk 0:02:59.4]}
5... Nc6 {[%clk 0:03:04]} 6. Be2 {[%clk 0:02:58.5]} 6... Qc7 {[%clk 0:03:03.9]}
7. O-O {[%clk 0:02:59.8]} 7... Nf6 {[%clk 0:03:04.2]} 8. Be3 {[%clk 0:02:59.7]}
8... Be7 {[%clk 0:03:05.2]} 9. f4 {[%clk 0:02:58.3]} 9... d6 {[%clk 0:03:05.7]}
10. Qe1 {[%clk 0:02:59.3]} 10... O-O {[%clk 0:03:06.2]} 11. Qg3 {[%clk
0:02:59.3]} 11... Nxd4 {[%clk 0:02:57.9]} 12. Bxd4 {[%clk 0:02:59.6]} 12... b5
{[%clk 0:02:59.4]} 13. a3 {[%clk 0:02:57.8]} 13... Bb7 {[%clk 0:02:59.9]} 14.
Bf3 {[%clk 0:02:55.8]} 14... Rac8 {[%clk 0:02:56]} 15. Rad1 {[%clk 0:02:45.4]}
15... Rfd8 {[%clk 0:02:56.1]} 16. Rfe1 {[%clk 0:02:38.5]} 16... Qb8 {[%clk
0:02:55.9]} 17. Rd3 {[%clk 0:02:23.5]} 17... Ne8 {[%clk 0:02:55.4]} 18. f5
{[%clk 0:02:05.8]} 18... Bf6 {[%clk 0:02:39.6]} 19. fxe6 {[%clk 0:01:58.1]}
19... fxe6 {[%clk 0:02:33.2]} 20. Bg4 {[%clk 0:01:55.4]} 20... Bxd4+ {[%clk
0:02:25.4]} 21. Rxd4 {[%clk 0:01:56]} 21... e5 {[%clk 0:02:26.3]} 22. Be6+
{[%clk 0:01:44.8]} 22... Kh8 {[%clk 0:02:26.4]} 23. Rd3 {[%clk 0:01:44.6]} 23...
Rc7 {[%clk 0:02:24.4]} 24. Rf1 {[%clk 0:01:36.8]} 24... Nf6 {[%clk 0:02:24.9]}
25. Qh4 {[%clk 0:01:32.1]} 25... Rf8 {[%clk 0:02:14.5]} 26. Rdf3 {[%clk
0:01:31.7]} 26... Re7 {[%clk 0:02:09.6]} 27. Bf5 {[%clk 0:01:30.7]} 27... Ree8
{[%clk 0:02:06.6]} 28. Rh3 {[%clk 0:01:18.4]} 28... h6 {[%clk 0:02:00.2]} 29.
Bg6 {[%clk 0:01:14.8]} 29... Qa7+ {[%clk 0:02:00.9]} 30. Kh1 {[%clk 0:01:11.5]}
30... Nxe4 {[%clk 0:01:57.5]} 31. Rhf3 {[%clk 0:00:57.5]} 31... Rxf3 {[%clk
0:01:38.9]} 32. Rxf3 {[%clk 0:00:49.2]} 32... Nxc3 {[%clk 0:01:36.8]} 33. Qe7
{[%clk 0:00:41.3]} 33... Rg8 {[%clk 0:01:21.3]} 34. Qf7 {[%clk 0:00:15.3]} 34...
Ne2 {[%clk 0:01:00.3]} 35. Rf1 {[%clk 0:00:10.8]} 35... Nf4 {[%clk 0:00:59.6]}
36. Be4 {[%clk 0:00:10.4]} 36... d5 {[%clk 0:00:56.7]} 37. Bf5 {[%clk 0:00:08]}
37... Qb6 {[%clk 0:00:38.9]} 38. Rxf4 {[%clk 0:00:07.2]} 38... exf4 {[%clk
0:00:38.9]} 39. Be6 {[%clk 0:00:08.2]} 39... Rd8 {[%clk 0:00:38.4]} 40. Qg6
{[%clk 0:00:08.2]} 40... Qd4 {[%clk 0:00:35.3]} 41. h4 {[%clk 0:00:07.4]} 41...
Qf6 {[%clk 0:00:36]} 0-1

[Event "*** Titled Tuesday 3|2 Blitz"]
[Site "Chess.com"]
[Date "2016.08.02"]
[Round "1"]
[White "bugsbunny444"]
[Black "Dr-Bassem"]
[Result "0-1"]
[WhiteElo "2305"]
[BlackElo "2619"]
[TimeControl "180+2"]
[EndTime "11:08:41 PDT"]
[Termination "Dr-Bassem won by resignation"]

1. Nf3 {[%clk 0:03:01.9]} 1... Nf6 {[%clk 0:02:59.5]} 2. c4 {[%clk 0:03:02.9]}
2... g6 {[%clk 0:02:58.9]} 3. b4 {[%clk 0:03:04]} 3... Bg7 {[%clk 0:02:58.7]} 4.
Bb2 {[%clk 0:03:05.3]} 4... O-O {[%clk 0:03:00.6]} 5. g3 {[%clk 0:03:06.5]} 5...
d6 {[%clk 0:02:59.2]} 6. Bg2 {[%clk 0:03:07.8]} 6... e5 {[%clk 0:02:59]} 7. O-O
{[%clk 0:03:09.1]} 7... e4 {[%clk 0:02:44.8]} 8. Nd4 {[%clk 0:03:08.7]} 8... Re8
{[%clk 0:02:41.6]} 9. Nc3 {[%clk 0:02:52.6]} 9... h5 {[%clk 0:02:26.2]} 10. Qc2
{[%clk 0:02:37.9]} 10... c5 {[%clk 0:02:14.2]} 11. bxc5 {[%clk 0:02:03.6]} 11...
dxc5 {[%clk 0:02:16.1]} 12. Nb3 {[%clk 0:02:05.3]} 12... Qe7 {[%clk 0:01:56.6]}
13. Nd5 {[%clk 0:01:37.2]} 13... Nxd5 {[%clk 0:01:56.9]} 14. Bxg7 {[%clk
0:01:38.1]} 14... Kxg7 {[%clk 0:01:56.5]} 15. cxd5 {[%clk 0:01:39.4]} 15... Na6
{[%clk 0:01:57.6]} 16. Rac1 {[%clk 0:01:22.5]} 16... b6 {[%clk 0:01:58.2]} 17.
Rfe1 {[%clk 0:01:08.4]} 17... Bb7 {[%clk 0:01:48.9]} 18. d3 {[%clk 0:01:03.8]}
18... Bxd5 {[%clk 0:01:45.9]} 19. Nd2 {[%clk 0:00:48.4]} 19... Nb4 {[%clk
0:01:16.6]} 20. Qb2+ {[%clk 0:00:42.5]} 20... Qe5 {[%clk 0:01:13.5]} 21. Qxe5+
{[%clk 0:00:38.5]} 21... Rxe5 {[%clk 0:01:15.4]} 22. a3 {[%clk 0:00:21.8]} 22...
Na2 {[%clk 0:01:03.9]} 23. Rc2 {[%clk 0:00:23.2]} 23... exd3 {[%clk 0:01:02.2]}
24. Rxa2 {[%clk 0:00:24.4]} 24... Bxa2 {[%clk 0:00:59.8]} 25. Bxa8 {[%clk
0:00:25.4]} 25... c4 {[%clk 0:00:59.1]} 26. Kf1 {[%clk 0:00:13.9]} 26... c3
{[%clk 0:00:54.2]} 27. exd3 {[%clk 0:00:14.6]} 27... Rxe1+ {[%clk 0:00:51.6]}
28. Kxe1 {[%clk 0:00:15.7]} 28... c2 {[%clk 0:00:51.9]} 29. Nb3 {[%clk
0:00:15.6]} 29... Bxb3 {[%clk 0:00:52.6]} 30. Kd2 {[%clk 0:00:17.1]} 30... Kf6
{[%clk 0:00:52.6]} 31. d4 {[%clk 0:00:16.6]} 31... Ke6 {[%clk 0:00:50.5]} 32.
Be4 {[%clk 0:00:16.6]} 32... f5 {[%clk 0:00:50.2]} 33. Bg2 {[%clk 0:00:10.4]}
33... Kd6 {[%clk 0:00:48.6]} 34. h4 {[%clk 0:00:10]} 34... b5 {[%clk 0:00:48.5]}
35. Bf1 {[%clk 0:00:10.7]} 35... a6 {[%clk 0:00:49.1]} 36. Bd3 {[%clk
0:00:10.8]} 36... Kd5 {[%clk 0:00:50]} 37. Bxc2 {[%clk 0:00:02.8]} 37... Bxc2
{[%clk 0:00:50.2]} 38. Kxc2 {[%clk 0:00:04.7]} 38... Kxd4 {[%clk 0:00:51.3]} 39.
Kb3 {[%clk 0:00:03.5]} 39... a5 {[%clk 0:00:52.3]} 0-1

[Event "*** Titled Tuesday 3|2 Blitz"]
[Site "Chess.com"]
[Date "2016.08.02"]
[Round "1"]
[White "AdamHunt1"]
[Black "eltenedor"]
[Result "0-1"]
[WhiteElo "2364"]
[BlackElo "2041"]
[TimeControl "180+2"]
[EndTime "11:08:47 PDT"]
[Termination "eltenedor won by resignation"]

1. e4 {[%clk 0:02:38.6]} 1... d5 {[%clk 0:02:59]} 2. exd5 {[%clk 0:02:38.6]}
2... Nf6 {[%clk 0:03:00.2]} 3. d4 {[%clk 0:02:38.8]} 3... Nxd5 {[%clk
0:03:00.7]} 4. c4 {[%clk 0:02:39.2]} 4... Nb6 {[%clk 0:03:01.2]} 5. Nf3 {[%clk
0:02:40.4]} 5... g6 {[%clk 0:03:00.3]} 6. Be2 {[%clk 0:02:40.3]} 6... Bg7 {[%clk
0:03:00.8]} 7. Be3 {[%clk 0:02:41.5]} 7... c5 {[%clk 0:02:52.3]} 8. O-O {[%clk
0:02:41.1]} 8... cxd4 {[%clk 0:02:51.5]} 9. Nxd4 {[%clk 0:02:37.2]} 9... O-O
{[%clk 0:02:45.4]} 10. Nc3 {[%clk 0:02:38.1]} 10... Nc6 {[%clk 0:02:39.9]} 11.
Nxc6 {[%clk 0:02:31.8]} 11... bxc6 {[%clk 0:02:38.2]} 12. Qc2 {[%clk 0:02:30.3]}
12... Bf5 {[%clk 0:02:27.4]} 13. Qb3 {[%clk 0:02:26.5]} 13... Rb8 {[%clk
0:02:22.9]} 14. Qa3 {[%clk 0:02:27.6]} 14... Qc7 {[%clk 0:02:18.3]} 15. Bc5
{[%clk 0:02:21.8]} 15... Rfe8 {[%clk 0:02:13.9]} 16. Rad1 {[%clk 0:02:22]} 16...
Be6 {[%clk 0:01:55.8]} 17. Qa6 {[%clk 0:02:06]} 17... Qb7 {[%clk 0:01:45.6]} 18.
Qxb7 {[%clk 0:01:47.5]} 18... Rxb7 {[%clk 0:01:47.5]} 19. Bf3 {[%clk 0:01:46.9]}
19... Rc8 {[%clk 0:01:29.5]} 20. Bxb6 {[%clk 0:01:28.7]} 20... axb6 {[%clk
0:01:10]} 21. Be2 {[%clk 0:01:28.3]} 21... Bxc3 {[%clk 0:00:59.9]} 22. bxc3
{[%clk 0:01:28.7]} 22... Ra8 {[%clk 0:00:59.5]} 23. Rd2 {[%clk 0:01:29.6]} 23...
Ra3 {[%clk 0:00:55.1]} 24. Rc1 {[%clk 0:01:22.4]} 24... Rba7 {[%clk 0:00:48.2]}
25. Rcc2 {[%clk 0:01:22.4]} 25... R7a4 {[%clk 0:00:40.9]} 26. c5 {[%clk
0:01:16.1]} 26... b5 {[%clk 0:00:18.4]} 27. c4 {[%clk 0:01:14.7]} 27... Bxc4
{[%clk 0:00:15.8]} 28. Bxc4 {[%clk 0:01:15.2]} 28... Rxc4 {[%clk 0:00:12.4]} 29.
Rxc4 {[%clk 0:01:16.1]} 29... bxc4 {[%clk 0:00:14.3]} 30. f3 {[%clk 0:01:17.2]}
30... Ra5 {[%clk 0:00:13.2]} 31. Kf2 {[%clk 0:01:16.2]} 31... Rxc5 {[%clk
0:00:13.7]} 32. Ke3 {[%clk 0:01:17.9]} 32... e5 {[%clk 0:00:13.9]} 33. Rc2
{[%clk 0:01:15.2]} 33... Kg7 {[%clk 0:00:13.2]} 34. Ke2 {[%clk 0:01:16.6]} 34...
Kf6 {[%clk 0:00:13.6]} 35. Kd2 {[%clk 0:01:18.1]} 35... Ke6 {[%clk 0:00:14.7]}
36. Kc3 {[%clk 0:01:19.5]} 36... Ra5 {[%clk 0:00:06.9]} 37. Kb4 {[%clk
0:01:19.9]} 37... Ra6 {[%clk 0:00:06.2]} 38. a4 {[%clk 0:01:19.7]} 38... f5
{[%clk 0:00:06.7]} 39. Rxc4 {[%clk 0:01:19.8]} 39... Kd5 {[%clk 0:00:06.1]} 40.
Rc5+ {[%clk 0:01:21.1]} 40... Kd4 {[%clk 0:00:07.1]} 41. Rc4+ {[%clk 0:01:22.6]}
41... Kd5 {[%clk 0:00:05.7]} 42. Rc2 {[%clk 0:01:23.3]} 42... e4 {[%clk
0:00:06.3]} 43. Rd2+ {[%clk 0:01:23.4]} 43... Ke5 {[%clk 0:00:07.1]} 44. fxe4
{[%clk 0:01:24.5]} 44... fxe4 {[%clk 0:00:07.7]} 45. a5 {[%clk 0:01:26.2]} 45...
e3 {[%clk 0:00:08.1]} 46. Ra2 {[%clk 0:01:26.8]} 46... Kd4 {[%clk 0:00:08.9]}
47. Kb3 {[%clk 0:01:27.9]} 47... Kd3 {[%clk 0:00:09.8]} 48. Kb4 {[%clk
0:01:28.3]} 48... e2 {[%clk 0:00:09.4]} 49. Ra3+ {[%clk 0:01:29.8]} 49... Kd2
{[%clk 0:00:09.7]} 50. Ra2+ {[%clk 0:01:31.2]} 50... Ke3 {[%clk 0:00:10.8]} 51.
Ra1 {[%clk 0:01:32.5]} 51... Kf2 {[%clk 0:00:11.8]} 52. Kc5 {[%clk 0:01:31.4]}
52... e1=Q {[%clk 0:00:11.4]} 53. Rxe1 {[%clk 0:01:31.6]} 53... Kxe1 {[%clk
0:00:13.3]} 54. Kd6 {[%clk 0:01:32.7]} 54... Rxa5 {[%clk 0:00:13.9]} 55. Kxc6
{[%clk 0:01:33.9]} 55... Rf5 {[%clk 0:00:14.2]} 56. Kd6 {[%clk 0:01:34.6]} 56...
Kf2 {[%clk 0:00:15.1]} 57. Ke6 {[%clk 0:01:35.6]} 57... Kxg2 {[%clk 0:00:15.3]}
58. h4 {[%clk 0:01:37]} 58... Kf3 {[%clk 0:00:15.8]} 0-1

[Event "*** Titled Tuesday 3|2 Blitz"]
[Site "Chess.com"]
[Date "2016.08.02"]
[Round "1"]
[White "DanielNaroditsky"]
[Black "Usurpov"]
[Result "1/2-1/2"]
[WhiteElo "2674"]
[BlackElo "2332"]
[TimeControl "180+2"]
[EndTime "11:08:56 PDT"]
[Termination "Game drawn by repetition"]

1. d4 {[%clk 0:03:01.3]} 1... Nf6 {[%clk 0:03:00.4]} 2. Bf4 {[%clk 0:03:01.5]}
2... g6 {[%clk 0:03:01.2]} 3. Nc3 {[%clk 0:03:02.2]} 3... Bg7 {[%clk 0:02:52.8]}
4. e4 {[%clk 0:03:02.6]} 4... d6 {[%clk 0:02:53.8]} 5. Be2 {[%clk 0:03:03.2]}
5... O-O {[%clk 0:02:53.3]} 6. Nf3 {[%clk 0:03:04.6]} 6... Bg4 {[%clk
0:02:51.4]} 7. O-O {[%clk 0:03:04.2]} 7... Nc6 {[%clk 0:02:30.4]} 8. d5 {[%clk
0:02:57]} 8... Nb8 {[%clk 0:02:24.1]} 9. h3 {[%clk 0:02:54.4]} 9... Bxf3 {[%clk
0:02:24.4]} 10. Bxf3 {[%clk 0:02:56.3]} 10... c6 {[%clk 0:02:25.8]} 11. e5
{[%clk 0:02:52.4]} 11... dxe5 {[%clk 0:01:55]} 12. Bxe5 {[%clk 0:02:54.3]} 12...
Nxd5 {[%clk 0:01:47.9]} 13. Bxg7 {[%clk 0:02:54.2]} 13... Kxg7 {[%clk
0:01:49.3]} 14. Nxd5 {[%clk 0:02:53.8]} 14... cxd5 {[%clk 0:01:51.2]} 15. Bxd5
{[%clk 0:02:55.1]} 15... Nc6 {[%clk 0:01:46.8]} 16. c3 {[%clk 0:02:56.4]} 16...
e6 {[%clk 0:01:43.6]} 17. Bxc6 {[%clk 0:02:56.8]} 17... bxc6 {[%clk 0:01:45.5]}
18. Qa4 {[%clk 0:02:56]} 18... Qb6 {[%clk 0:01:44.4]} 19. Qc2 {[%clk 0:02:53.9]}
19... Rfd8 {[%clk 0:01:43.6]} 20. Rad1 {[%clk 0:02:54.7]} 20... Rd5 {[%clk
0:01:42.1]} 21. c4 {[%clk 0:02:55.3]} 21... Rxd1 {[%clk 0:01:18.8]} 22. Rxd1
{[%clk 0:02:57.2]} 22... Rd8 {[%clk 0:01:15]} 23. Qc3+ {[%clk 0:02:53.4]} 23...
f6 {[%clk 0:01:11.9]} 24. Rxd8 {[%clk 0:02:49.2]} 24... Qxd8 {[%clk 0:01:13.8]}
25. Qa3 {[%clk 0:02:43.4]} 25... Qd1+ {[%clk 0:00:56.2]} 26. Kh2 {[%clk
0:02:44.5]} 26... Qd4 {[%clk 0:00:56]} 27. Qe7+ {[%clk 0:02:43.6]} 27... Kh6
{[%clk 0:00:50.5]} 28. Qf8+ {[%clk 0:02:12]} 28... Kg5 {[%clk 0:00:45]} 29. Qe7
{[%clk 0:01:47.1]} 29... Qf4+ {[%clk 0:00:27.4]} 30. Kh1 {[%clk 0:01:48.3]}
30... Qc1+ {[%clk 0:00:20.3]} 31. Kh2 {[%clk 0:01:49.7]} 31... Qf4+ {[%clk
0:00:21.3]} 32. Kg1 {[%clk 0:01:51.3]} 32... Qc1+ {[%clk 0:00:21.9]} 33. Kh2
{[%clk 0:00:19.1]} 33... Qf4+ {[%clk 0:00:13.8]} 34. Kg1 {[%clk 0:00:08.7]}
34... Qc1+ {[%clk 0:00:11.7]} 35. Kh2 {[%clk 0:00:08.4]} 35... Qf4+ {[%clk
0:00:12.4]} 36. Kg1 {[%clk 0:00:09.4]} 36... Qc1+ {[%clk 0:00:12.9]} 37. Kh2
{[%clk 0:00:06.1]} 37... Qf4+ {[%clk 0:00:13.1]} 1/2-1/2

[Event "*** Titled Tuesday 3|2 Blitz"]
[Site "Chess.com"]
[Date "2016.08.02"]
[Round "1"]
[White "MattyDPerrine"]
[Black "MaestroASK"]
[Result "1/2-1/2"]
[WhiteElo "2217"]
[BlackElo "2493"]
[TimeControl "180+2"]
[EndTime "11:09:07 PDT"]
[Termination "Game drawn by repetition"]

1. d4 {[%clk 0:02:46.3]} 1... d6 {[%clk 0:03:00.1]} 2. Nf3 {[%clk 0:02:43]} 2...
g6 {[%clk 0:03:02]} 3. g3 {[%clk 0:02:41.1]} 3... Bg7 {[%clk 0:03:02.6]} 4. Bg2
{[%clk 0:02:42.6]} 4... e5 {[%clk 0:03:03]} 5. O-O {[%clk 0:02:38.2]} 5... f6
{[%clk 0:03:03.2]} 6. e4 {[%clk 0:02:35.4]} 6... Nd7 {[%clk 0:03:02.4]} 7. b3
{[%clk 0:02:28.9]} 7... Nh6 {[%clk 0:03:00.6]} 8. Bb2 {[%clk 0:02:28.9]} 8...
O-O {[%clk 0:03:00.3]} 9. Nbd2 {[%clk 0:02:29.2]} 9... Nf7 {[%clk 0:02:59.9]}
10. Re1 {[%clk 0:02:30]} 10... Re8 {[%clk 0:02:59.1]} 11. Bh3 {[%clk 0:02:29.1]}
11... Qe7 {[%clk 0:02:56.3]} 12. d5 {[%clk 0:02:18]} 12... Nf8 {[%clk
0:02:51.9]} 13. Bxc8 {[%clk 0:02:16.8]} 13... Rexc8 {[%clk 0:02:52.2]} 14. Nh4
{[%clk 0:02:11.7]} 14... Nd7 {[%clk 0:02:49]} 15. b4 {[%clk 0:01:54.4]} 15...
Rf8 {[%clk 0:02:41.9]} 16. Nb3 {[%clk 0:01:44.2]} 16... Ng5 {[%clk 0:02:38.4]}
17. Qd3 {[%clk 0:01:36.8]} 17... Nb6 {[%clk 0:02:15.2]} 18. a4 {[%clk
0:01:32.6]} 18... Qd7 {[%clk 0:02:13.8]} 19. a5 {[%clk 0:01:17.7]} 19... Nc8
{[%clk 0:02:13.9]} 20. f3 {[%clk 0:01:02]} 20... Ne7 {[%clk 0:02:12.6]} 21. c4
{[%clk 0:01:01.2]} 21... f5 {[%clk 0:02:11.4]} 22. Rf1 {[%clk 0:01:00.1]} 22...
fxe4 {[%clk 0:02:06.8]} 23. fxe4 {[%clk 0:01:01.2]} 23... Qg4 {[%clk 0:02:04]}
24. Nd2 {[%clk 0:01:01.9]} 24... Nh3+ {[%clk 0:01:59.7]} 25. Kg2 {[%clk
0:00:45.4]} 25... Nf4+ {[%clk 0:01:59.9]} 26. Rxf4 {[%clk 0:00:46.9]} 26... exf4
{[%clk 0:01:59.7]} 27. Bxg7 {[%clk 0:00:47.8]} 27... Kxg7 {[%clk 0:01:59.8]} 28.
Nhf3 {[%clk 0:00:35.5]} 28... fxg3 {[%clk 0:01:58.3]} 29. hxg3 {[%clk
0:00:36.2]} 29... Kg8 {[%clk 0:01:51.8]} 30. c5 {[%clk 0:00:31.7]} 30... Rf7
{[%clk 0:01:46.8]} 31. Rh1 {[%clk 0:00:21.4]} 31... Raf8 {[%clk 0:01:45.4]} 32.
Rh4 {[%clk 0:00:23]} 32... Qd7 {[%clk 0:01:42.4]} 33. Qd4 {[%clk 0:00:20.4]}
33... Qb5 {[%clk 0:01:34.2]} 34. Kf2 {[%clk 0:00:18.2]} 34... dxc5 {[%clk
0:01:21.4]} 35. Qxc5 {[%clk 0:00:18.3]} 35... Qd3 {[%clk 0:01:18.3]} 36. Qe3
{[%clk 0:00:19.1]} 36... Qc2 {[%clk 0:01:17.6]} 37. Rf4 {[%clk 0:00:12]} 37...
Rxf4 {[%clk 0:01:14]} 38. gxf4 {[%clk 0:00:13.9]} 38... Qb2 {[%clk 0:01:08.8]}
39. Qc5 {[%clk 0:00:07.8]} 39... Rf7 {[%clk 0:01:02.8]} 40. Kg3 {[%clk
0:00:03.7]} 40... b6 {[%clk 0:00:58.2]} 41. axb6 {[%clk 0:00:02.4]} 41... cxb6
{[%clk 0:00:56]} 42. Qd4 {[%clk 0:00:03.8]} 42... Qxd4 {[%clk 0:00:55.9]} 43.
Nxd4 {[%clk 0:00:05.4]} 43... Nc8 {[%clk 0:00:56.5]} 44. e5 {[%clk 0:00:02.3]}
44... Rc7 {[%clk 0:00:56.8]} 45. Ne4 {[%clk 0:00:02.6]} 45... Rc4 {[%clk
0:00:56.7]} 46. Nf6+ {[%clk 0:00:04]} 46... Kf7 {[%clk 0:00:56.2]} 47. Nc6
{[%clk 0:00:04.9]} 47... Ne7 {[%clk 0:00:52.5]} 48. Nd8+ {[%clk 0:00:04.3]}
48... Kg7 {[%clk 0:00:51.3]} 49. Ne6+ {[%clk 0:00:05.8]} 49... Kf7 {[%clk
0:00:49.3]} 50. Nd8+ {[%clk 0:00:07.2]} 50... Kf8 {[%clk 0:00:50.4]} 51. Ne6+
{[%clk 0:00:08.7]} 51... Kf7 {[%clk 0:00:50.5]} 52. Nd8+ {[%clk 0:00:10.6]}
1/2-1/2

[Event "*** Titled Tuesday 3|2 Blitz"]
[Site "Chess.com"]
[Date "2016.08.02"]
[Round "1"]
[White "Sanan_Sjugirov"]
[Black "awb2001"]
[Result "1-0"]
[WhiteElo "2691"]
[BlackElo "2329"]
[TimeControl "180+2"]
[EndTime "11:09:10 PDT"]
[Termination "Sanan_Sjugirov won by resignation"]

1. d4 {[%clk 0:03:00.5]} 1... Nf6 {[%clk 0:03:00.4]} 2. Nf3 {[%clk 0:03:00.8]}
2... e6 {[%clk 0:03:01.5]} 3. Bg5 {[%clk 0:03:00.7]} 3... h6 {[%clk 0:03:01.6]}
4. Bh4 {[%clk 0:03:01.6]} 4... c5 {[%clk 0:03:03.2]} 5. e3 {[%clk 0:03:02.3]}
5... b6 {[%clk 0:03:04.4]} 6. Nc3 {[%clk 0:02:53.7]} 6... d5 {[%clk 0:02:51.8]}
7. Bb5+ {[%clk 0:02:19.9]} 7... Bd7 {[%clk 0:02:46.4]} 8. Bxf6 {[%clk
0:02:18.1]} 8... Qxf6 {[%clk 0:02:45.4]} 9. O-O {[%clk 0:02:05.1]} 9... Nc6
{[%clk 0:02:16.5]} 10. Bxc6 {[%clk 0:01:56.7]} 10... Bxc6 {[%clk 0:02:16.9]} 11.
Ne5 {[%clk 0:01:58]} 11... Bb7 {[%clk 0:02:16.8]} 12. Qe2 {[%clk 0:01:56.4]}
12... a6 {[%clk 0:02:14.6]} 13. f4 {[%clk 0:01:55.5]} 13... Bd6 {[%clk 0:02:12]}
14. a4 {[%clk 0:01:43.3]} 14... O-O {[%clk 0:02:10.5]} 15. Nd7 {[%clk
0:01:43.1]} 15... Qg6 {[%clk 0:02:06.3]} 16. Nxf8 {[%clk 0:01:42.4]} 16... Rxf8
{[%clk 0:02:08.2]} 17. Nd1 {[%clk 0:01:37.7]} 17... Re8 {[%clk 0:01:52.9]} 18.
c3 {[%clk 0:01:26.7]} 18... f6 {[%clk 0:01:40.9]} 19. Nf2 {[%clk 0:01:10.3]}
19... e5 {[%clk 0:01:40.5]} 20. fxe5 {[%clk 0:01:04]} 20... fxe5 {[%clk
0:01:41.3]} 21. Qg4 {[%clk 0:00:59.2]} 21... Re6 {[%clk 0:01:08.1]} 22. Qxg6
{[%clk 0:00:59]} 22... Rxg6 {[%clk 0:01:09]} 23. Nd3 {[%clk 0:00:58]} 23... e4
{[%clk 0:00:58.2]} 24. Nf4 {[%clk 0:00:57.1]} 24... Rg5 {[%clk 0:00:58.9]} 25.
Ne6 {[%clk 0:00:55.9]} 25... Rh5 {[%clk 0:00:59.2]} 26. h3 {[%clk 0:00:51.6]}
26... Bc8 {[%clk 0:00:56.8]} 27. Nf4 {[%clk 0:00:51.5]} 27... Rg5 {[%clk
0:00:57.9]} 28. a5 {[%clk 0:00:49.9]} 28... b5 {[%clk 0:00:57.3]} 29. h4 {[%clk
0:00:46.4]} 29... Rg4 {[%clk 0:00:54.6]} 30. Nxd5 {[%clk 0:00:34.8]} 30... Rxh4
{[%clk 0:00:55.2]} 31. dxc5 {[%clk 0:00:33.5]} 31... Bxc5 {[%clk 0:00:55]} 32.
b4 {[%clk 0:00:33.3]} 32... Bd6 {[%clk 0:00:54.5]} 33. Kf2 {[%clk 0:00:32.2]}
33... Be6 {[%clk 0:00:53.5]} 34. Rad1 {[%clk 0:00:29.8]} 34... Rg4 {[%clk
0:00:46.6]} 35. Nf6+ {[%clk 0:00:25.1]} 35... gxf6 {[%clk 0:00:46.1]} 36. Rxd6
{[%clk 0:00:14.8]} 36... Bc4 {[%clk 0:00:39.9]} 37. Rh1 {[%clk 0:00:15.5]} 37...
Kg7 {[%clk 0:00:40.4]} 38. Rxa6 {[%clk 0:00:16.4]} 38... Rg5 {[%clk 0:00:41.7]}
39. Ra7+ {[%clk 0:00:17.6]} 39... Kg6 {[%clk 0:00:42.6]} 40. Rh4 {[%clk
0:00:19.5]} 40... Rd5 {[%clk 0:00:39.2]} 41. Rxe4 {[%clk 0:00:20.4]} 41... Rd2+
{[%clk 0:00:40.4]} 42. Kg3 {[%clk 0:00:21.8]} 42... Bd5 {[%clk 0:00:41.7]} 43.
Rg4+ {[%clk 0:00:23.1]} 43... Kf5 {[%clk 0:00:42.4]} 44. Rf4+ {[%clk 0:00:24.3]}
44... Kg6 {[%clk 0:00:42.9]} 45. e4 {[%clk 0:00:23.3]} 45... Rd3+ {[%clk
0:00:43.9]} 46. Kh4 {[%clk 0:00:22.9]} 46... Be6 {[%clk 0:00:42.4]} 47. Ra6
{[%clk 0:00:23.4]} 47... Bc8 {[%clk 0:00:37.1]} 48. Raxf6+ {[%clk 0:00:23.9]}
1-0